bitfinex-derivatives/quotes_BTCF0:USTF0_20250119
["timestamp","ask_amount","ask_price","bid_price","bid_amount"]
[1737312874101,0.33718366,104970.0,104960.0,1.1157501]
[1737312874296,0.33718366,104970.0,104960.0,1.45772669]
[1737312874501,0.19457748,104970.0,104960.0,1.45772669]
[1737312876107,0.19457748,104970.0,104960.0,1.09692668]
[1737312876309,0.19457748,104970.0,104960.0,1.45772668]
[1737312876806,0.19457748,104970.0,104960.0,0.75495009]
[1737312877601,0.19457748,104970.0,104960.0,1.11575009]
[1737312877807,0.19457748,104970.0,104960.0,1.45772668]
[1737312878015,0.19457748,104970.0,104960.0,1.45772674]
[1737312879107,0.19457748,104970.0,104960.0,1.09692674]
[1737312880015,0.19457748,104970.0,104960.0,1.45772673]
[1737312880710,0.16177748,104970.0,104960.0,1.46249832]
[1737312881011,0.16177748,104970.0,104960.0,1.49549832]
[1737312882312,0.16177748,104970.0,104960.0,1.49549831]
[1737312884006,0.16177748,104970.0,104960.0,1.13469831]
[1737312884403,0.21846747,104970.0,104960.0,0.73560567]
[1737312884602,0.21846747,104970.0,104960.0,0.71251066]
[1737312885713,0.21846747,104970.0,104960.0,0.71251061]
[1737312886518,0.21846747,104970.0,104960.0,0.71195942]
[1737312887107,0.36101797,104970.0,104960.0,0.71195942]
[1737312888809,0.36101797,104970.0,104960.0,0.70718785]
[1737312889816,0.31333097,104970.0,104960.0,0.74155528]
[1737312890406,0.31333097,104970.0,104960.0,0.74632662]
[1737312891613,0.31333097,104970.0,104960.0,0.75348291]
[1737312891810,0.31353416,104980.0,104970.0,0.047687]
[1737312892009,0.31353416,104980.0,104970.0,0.44583641]
[1737312893115,0.31353416,104980.0,104970.0,1.11485198]
[1737312895417,0.31353416,104980.0,104970.0,0.75405198]
[1737312895608,0.31353416,104980.0,104970.0,1.114852]
[1737312895807,0.31353416,104980.0,104970.0,1.11962308]
[1737312896010,0.31353416,104980.0,104970.0,0.75882308]
[1737312896215,0.31353416,104980.0,104970.0,1.11962308]
[1737312896609,0.31353416,104980.0,104970.0,1.114852]
[1737312896817,0.31353416,104980.0,104970.0,1.1286313]
[1737312897022,0.17098366,104980.0,104970.0,1.1286313]
[1737312897421,0.17098366,104980.0,104970.0,1.12863108]
[1737312898520,0.17098366,104980.0,104970.0,1.11962301]
[1737312898921,0.22774456,104980.0,104970.0,0.45060744]
[1737312899416,0.22774456,104980.0,104970.0,0.44762551]
[1737312899623,0.22774456,104980.0,104970.0,0.44583636]
[1737312899823,0.22774456,104980.0,104970.0,0.45060744]
[1737312900824,0.22774456,104980.0,104970.0,0.44583636]
[1737312901117,0.22774456,104980.0,104970.0,0.45060746]
[1737312901718,0.37020066,104980.0,104970.0,0.45060746]
[1737312902729,0.37020066,104980.0,104970.0,0.45060738]
[1737312902919,0.22774456,104980.0,104970.0,0.45060738]
[1737312904626,0.22774456,104980.0,104970.0,0.44583635]
[1737312904826,0.22774456,104980.0,104970.0,0.45060742]
[1737312906625,0.17088735,104980.0,104970.0,1.34737423]
[1737312906831,0.11392326,104980.0,104970.0,1.38174167]
[1737312907126,0.51159585,104990.0,104980.0,0.047682]
[1737312907326,0.51159585,104990.0,104980.0,0.51636986]
[1737312907719,0.51159585,104990.0,104980.0,0.52233298]
[1737312908025,0.14240408,104990.0,104980.0,0.75111781]
[1737312908223,0.14240408,104990.0,104980.0,0.76602493]
[1737312908415,0.14240408,104990.0,104980.0,0.69729005]
[1737312908633,0.25524952,104990.0,104980.0,0.65515586]
[1737312909015,0.25524952,104990.0,104980.0,0.64024874]
[1737312909219,0.11284544,104990.0,104980.0,1.42550553]
[1737312910030,0.11284544,104990.0,104980.0,1.45987297]
[1737312910422,0.25524952,104990.0,104980.0,0.44583135]
[1737312910618,0.22088208,104990.0,104980.0,0.44583135]
[1737312911030,0.22088208,104990.0,104980.0,0.44284944]
[1737312911631,0.22088208,104990.0,104980.0,0.67146161]
[1737312912126,0.22088208,104990.0,104980.0,0.70582905]
[1737312912521,0.22088208,104990.0,104980.0,0.67444323]
[1737312912722,0.22088208,104990.0,104980.0,0.70881067]
[1737312912918,0.078478,104990.0,104980.0,1.38088775]
[1737312914528,0.078478,104990.0,104980.0,1.38088774]
[1737312916335,0.078478,104990.0,104980.0,1.38088777]
[1737312916729,0.0308,104990.0,104980.0,1.38088777]
[1737312917333,0.0308,104990.0,104980.0,1.39004512]
[1737312918432,0.0308,104990.0,104980.0,1.16143295]
[1737312918933,0.0308,104990.0,104980.0,1.16620343]
[1737312920336,0.0308,104990.0,104980.0,1.16620318]
[1737312921440,0.16673274,105000.0,104980.0,1.16620318]
[1737312921623,0.11905574,105000.0,104990.0,0.44284544]
[1737312921826,0.11905574,105000.0,104990.0,0.44582693]
[1737312922327,0.28983621,105000.0,104990.0,0.44582693]
[1737312923635,0.25883621,105000.0,104990.0,0.44582693]
[1737312924237,0.25883621,105000.0,104990.0,0.44582696]
[1737312926143,0.25883621,105000.0,104990.0,0.44284544]
[1737312927540,0.25883621,105000.0,104990.0,0.08204544]
[1737312927939,0.25883621,105000.0,104990.0,0.408478]
[1737312928140,0.25883621,105000.0,104990.0,0.047678]
[1737312928630,0.28953621,105000.0,104990.0,0.047678]
[1737312929033,0.26106912,105000.0,104990.0,0.047678]
[1737312929530,0.29543656,105000.0,104990.0,0.047678]
[1737312930731,0.26106912,105000.0,104990.0,0.08204544]
[1737312930935,0.26106912,105000.0,104990.0,0.44284544]
[1737312931334,0.26106912,105000.0,104990.0,0.08204544]
[1737312931530,0.26106912,105000.0,104990.0,0.67140468]
[1737312932141,0.26106912,105000.0,104990.0,0.67438615]
[1737312932441,0.26106912,105000.0,104990.0,0.67140468]
[1737312932638,0.26106912,105000.0,104990.0,0.31358617]
[1737312932943,0.26106912,105000.0,104990.0,0.67438617]
[1737312936059,0.26106912,105000.0,104990.0,0.64001873]
[1737312936358,0.26106912,105000.0,104990.0,0.27921873]
[1737312936557,0.26106912,105000.0,104990.0,0.64001873]
[1737312936752,0.29543656,105000.0,104990.0,0.27921873]
[1737312936954,0.32390365,105000.0,104990.0,0.05065949]
[1737312937758,0.28953621,105000.0,104990.0,0.05065949]
[1737312937957,0.32390365,105000.0,104990.0,0.05065949]
[1737312938156,0.28953621,105000.0,104990.0,0.44582693]
[1737312938459,0.11875574,105000.0,104990.0,0.41145949]
[1737312939165,0.11875574,105000.0,104990.0,0.05065949]
[1737312939663,0.11875574,105000.0,104990.0,0.41145949]
[1737312939964,0.11875574,105000.0,104990.0,0.05065949]
[1737312940259,0.11875574,105000.0,104990.0,0.41145949]
[1737312941564,0.11875574,105000.0,104990.0,0.05065949]
[1737312942059,0.11875574,105000.0,104990.0,0.41145949]
[1737312942261,0.11875574,105000.0,104990.0,0.05065949]
[1737312942760,0.11875574,105000.0,104990.0,0.41145949]
[1737312942961,0.15312318,105000.0,104990.0,0.41145949]
[1737312943158,0.15312318,105000.0,104990.0,0.41622994]
[1737312943463,0.15312318,105000.0,104990.0,0.41623001]
[1737312943664,0.46660813,105000.0,104990.0,0.8163694]
[1737312943957,0.32266569,105000.0,104990.0,0.85073684]
[1737312944165,0.31348495,105000.0,104990.0,0.88510428]
[1737312944357,0.31348495,105000.0,104990.0,0.91723203]
[1737312944563,0.31348495,105000.0,104990.0,0.95159947]
[1737312945464,0.22970492,105010.0,104990.0,1.17905032]
[1737312945761,0.22970492,105010.0,105000.0,0.408473]
[1737312945762,0.26407236,105010.0,105000.0,0.408473]
[1737312945964,0.26407236,105010.0,105000.0,0.41622423]
[1737312946555,0.22970492,105010.0,105000.0,0.45059167]
[1737312946756,0.22970492,105010.0,105000.0,0.67934186]
[1737312946968,0.22970492,105010.0,105000.0,0.67934176]
[1737312947559,0.22970492,105010.0,105000.0,0.67934155]
[1737312947763,0.18203492,105010.0,105000.0,0.71370899]
[1737312948155,0.18203492,105010.0,105000.0,0.70893919]
[1737312948355,0.18203492,105010.0,105000.0,1.38306935]
[1737312949566,0.03954176,105010.0,105000.0,0.70893919]
[1737312950667,0.42424995,105020.0,105010.0,0.047669]
[1737312950867,0.39194995,105020.0,105010.0,0.44283644]
[1737312951167,0.078465,105020.0,105010.0,0.44283644]
[1737312952265,0.28361421,105020.0,105010.0,0.44283644]
[1737312952657,0.29310129,105020.0,105010.0,0.44283644]
[1737312953959,0.29310129,105020.0,105010.0,0.408469]
[1737312955260,0.29310129,105020.0,105010.0,0.44283644]
[1737312956568,0.25873385,105020.0,105010.0,0.44283644]
[1737312956869,0.22793385,105020.0,105010.0,0.44283644]
[1737312957062,0.22793385,105020.0,105010.0,0.47363644]
[1737312958171,0.22793385,105020.0,105010.0,0.47661734]
[1737312958363,0.1993812,105020.0,105010.0,0.47661734]
[1737312959875,0.1993812,105020.0,105010.0,0.47661732]
[1737312963161,0.1993812,105020.0,105010.0,0.47363644]
[1737312967769,0.31320324,105020.0,105010.0,0.64505938]
[1737312968571,0.38193812,105020.0,105010.0,0.17142294]
[1737312968778,0.80683812,105020.0,105010.0,0.17142294]
[1737312969373,0.69301608,105020.0,105010.0,0.17142294]
[1737312969971,0.6242812,105020.0,105010.0,0.17142294]
[1737312970172,0.69301608,105020.0,105010.0,0.17142294]
[1737312970677,0.55078696,105020.0,104990.0,1.12678638]
[1737312970878,0.047673,105000.0,104990.0,1.12678638]
[1737312971276,0.047673,105000.0,104990.0,1.12976779]
[1737312972970,0.047673,105000.0,104990.0,1.13453802]
[1737312973168,0.047673,105000.0,104990.0,1.36328821]
[1737312973169,0.18997083,105000.0,104990.0,1.36328821]
[1737312974175,0.18997083,105000.0,104990.0,1.36328819]
[1737312974372,0.047673,105000.0,104990.0,0.96311506]
[1737312974577,0.22779776,105000.0,104990.0,0.96311506]
[1737312975976,0.22779776,105000.0,104990.0,0.95536344]
[1737312976167,0.22779776,105000.0,104990.0,0.95834485]
[1737312976372,0.22779776,105000.0,104990.0,0.96311511]
[1737312977379,0.2621652,105000.0,104990.0,0.87630141]
[1737312977575,0.3265652,105000.0,104990.0,0.87630141]
[1737312977777,0.3265652,105000.0,104990.0,0.91066885]
[1737312977980,0.3265652,105000.0,104990.0,0.91066892]
[1737312978279,0.3265652,105000.0,104990.0,0.90768744]
[1737312978483,0.3265652,105000.0,104990.0,0.54688744]
[1737312980071,0.3265652,105000.0,104990.0,0.51252]
[1737312981078,0.1558078,105000.0,104990.0,0.68394294]
[1737312986478,0.1558078,105000.0,104990.0,0.68692453]
[1737312986881,0.1558078,105000.0,104990.0,0.17440453]
[1737312987891,0.1558078,105000.0,104990.0,0.17440457]
[1737312990491,0.1558078,105000.0,104990.0,0.17440458]
[1737312990688,0.55097524,105000.0,104990.0,0.17440458]
[1737312990895,0.55097524,105000.0,104990.0,0.17142294]
[1737312992389,0.047678,104990.0,104980.0,0.61426838]
[1737312992589,0.08204544,104990.0,104980.0,0.61725022]
[1737312993990,0.08204544,104990.0,104980.0,0.61725021]
[1737312994995,0.047678,104990.0,104980.0,0.61725021]
[1737312995694,0.047678,104990.0,104980.0,0.8460004]
[1737312996893,0.18989182,104990.0,104980.0,0.44582727]
[1737312998194,0.18989182,104990.0,104980.0,0.45059802]
[1737312999188,0.18989182,104990.0,104980.0,0.44871144]
[1737312999597,0.2184354,104990.0,104980.0,0.44871144]
[1737312999791,0.2184354,104990.0,104980.0,0.44095886]
[1737312999993,0.2184354,104990.0,104980.0,0.44871138]
[1737313000889,0.1707574,104990.0,104980.0,1.01530176]
[1737313001403,0.1707574,104990.0,104980.0,1.02126487]
[1737313001696,0.1707574,104990.0,104980.0,1.01530176]
[1737313002200,0.14236301,104990.0,104980.0,1.24405195]
[1737313003693,0.14236301,104990.0,104980.0,1.24405139]
[1737313004893,0.14236301,104990.0,104980.0,0.84387826]
[1737313005195,0.05704136,105000.0,104990.0,0.047678]
[1737313005395,0.05704136,105000.0,104990.0,0.47632696]
[1737313005590,0.05704136,105000.0,104990.0,0.47334544]
[1737313005787,0.05704136,105000.0,104990.0,0.47632695]
[1737313006185,0.05704136,105000.0,104990.0,0.47632687]
[1737313006392,0.05704136,105000.0,104990.0,0.70500263]
[1737313007003,0.05704136,105000.0,104990.0,0.34420263]
[1737313007307,0.05704136,105000.0,104990.0,0.70500268]
[1737313007601,0.0914088,105000.0,104990.0,0.34420268]
[1737313007900,0.0914088,105000.0,104990.0,1.38290307]
[1737313008494,0.0914088,105000.0,104990.0,1.38767342]
[1737313008897,0.0914088,105000.0,104990.0,0.99584663]
[1737313009098,0.0914088,105000.0,104990.0,0.96147919]
[1737313009603,0.0914088,105000.0,104990.0,0.99584663]
[1737313010200,0.0914088,105000.0,104990.0,0.70977303]
[1737313011402,0.2621662,105000.0,104990.0,0.48109727]
[1737313012898,0.2621662,105000.0,104990.0,0.44672983]
[1737313014121,0.2621662,105000.0,104990.0,0.44673008]
[1737313014615,0.2621662,105000.0,104990.0,0.41623008]
[1737313016008,0.2621662,105000.0,104990.0,0.36855208]
[1737313016211,0.29653364,105000.0,104990.0,0.36855208]
[1737313016405,0.2621662,105000.0,104990.0,0.36855208]
[1737313016614,0.2621662,105000.0,104990.0,0.36378157]
[1737313017608,0.2621662,105000.0,104990.0,0.17448591]
[1737313018301,0.29653364,105000.0,104990.0,0.17448591]
[1737313018503,0.65733364,105000.0,104990.0,0.17448591]
[1737313018905,0.65733364,105000.0,104990.0,0.17150434]
[1737313019105,0.48657624,105000.0,104990.0,0.22867576]
[1737313019912,0.12577624,105000.0,104990.0,0.22867576]
[1737313020305,0.047678,104990.0,104980.0,0.92322936]
[1737313020501,0.11384544,104990.0,104980.0,0.93098197]
[1737313021106,0.11384544,104990.0,104980.0,0.92322936]
[1737313021302,0.11384544,104990.0,104980.0,0.93098202]
[1737313021907,0.11384544,104990.0,104980.0,0.64490842]
[1737313022608,0.11384544,104990.0,104980.0,0.63715576]
[1737313022807,0.11384544,104990.0,104980.0,0.6449084]
[1737313023711,0.11384544,104990.0,104980.0,0.64013754]
[1737313024316,0.11384544,104990.0,104980.0,0.67450498]
[1737313024519,0.11384544,104990.0,104980.0,0.6715232]
[1737313024718,0.11384544,104990.0,104980.0,0.67450496]
[1737313026716,0.28460284,104990.0,104980.0,0.4458292]
[1737313028419,0.28460284,104990.0,104980.0,0.44582922]
[1737313029006,0.28460284,104990.0,104980.0,0.44582919]
[1737313029822,0.25606957,104990.0,104980.0,0.61735526]
[1737313030222,0.22170213,104990.0,104980.0,0.61735526]
[1737313030521,0.22170213,104990.0,104980.0,0.61735524]
[1737313030722,0.22170213,104990.0,104980.0,0.62212601]
[1737313031923,0.25606957,104990.0,104980.0,0.62212601]
[1737313033018,0.22170213,104990.0,104980.0,0.62212601]
[1737313033421,0.2502354,104990.0,104980.0,0.45059994]
[1737313033921,0.28460284,104990.0,104980.0,0.45059994]
[1737313034314,0.2502354,104990.0,104980.0,0.44284744]
[1737313034621,0.2502354,104990.0,104980.0,0.45060005]
[1737313035513,0.079478,104990.0,104980.0,0.67927581]
[1737313036323,0.079478,104990.0,104980.0,0.67927572]
[1737313038118,0.11384544,104990.0,104980.0,0.59722828]
[1737313038820,0.2560594,104990.0,104980.0,0.5924575]
[1737313039923,0.22169196,104990.0,104980.0,0.5924575]
[1737313040325,0.22169196,104990.0,104980.0,0.59245759]
[1737313040515,0.22169196,104990.0,104980.0,0.23165759]
[1737313040716,0.2560594,104990.0,104980.0,0.23165759]
[1737313041320,0.28460284,104990.0,104980.0,0.17454354]
[1737313041714,0.31790284,104990.0,104980.0,0.17454354]
[1737313042227,0.67870284,104990.0,104980.0,0.17454365]
[1737313042826,0.67870284,104990.0,104980.0,0.00298194]
[1737313044141,0.67870284,104990.0,104980.0,0.17454367]
[1737313044725,0.67870284,104990.0,104980.0,0.22222567]
[1737313045827,0.67870284,104990.0,104980.0,0.22699683]
[1737313046428,0.50794544,104990.0,104980.0,0.05543512]
[1737313048131,0.50794544,104990.0,104980.0,0.05543517]
[1737313048332,0.67872848,104990.0,104980.0,0.22699688]
[1737313049628,0.65028779,104990.0,104980.0,0.28411093]
[1737313050231,0.28948779,104990.0,104980.0,0.28411086]
[1737313050429,0.28948779,104990.0,104980.0,0.23642886]
[1737313050737,0.32048779,104990.0,104980.0,0.23642886]
[1737313051327,0.68128779,104990.0,104980.0,0.23642886]
[1737313051526,0.68128779,104990.0,104980.0,0.23165772]
[1737313052122,0.70972848,104990.0,104980.0,0.40331147]
[1737313052323,0.67536104,104990.0,104980.0,0.40331147]
[1737313052728,0.34892848,104990.0,104980.0,0.40331147]
[1737313053732,0.70972848,104990.0,104980.0,0.40331147]
[1737313053929,0.70972848,104990.0,104980.0,0.40032951]
[1737313054129,0.70972848,104990.0,104980.0,0.40331159]
[1737313054723,0.85201155,104990.0,104980.0,0.40331159]
[1737313055032,0.85201155,104990.0,104980.0,0.40331157]
[1737313055632,0.85201155,104990.0,104980.0,0.40331156]
[1737313056026,0.68122851,104990.0,104980.0,0.23165782]
[1737313056423,0.32042851,104990.0,104980.0,0.23165782]
[1737313058327,0.32042851,104990.0,104980.0,0.59245782]
[1737313058726,0.32042851,104990.0,104980.0,0.23165782]
[1737313059120,0.32042851,104990.0,104980.0,0.40325371]
[1737313059734,0.32042851,104990.0,104980.0,0.44795365]
[1737313059929,0.32042851,104990.0,104980.0,0.45093557]
[1737313060440,0.28606107,104990.0,104980.0,0.48530301]
[1737313060728,0.22176107,104990.0,104980.0,0.850874]
[1737313060933,0.22176107,104990.0,104980.0,0.881774]
[1737313061330,0.25612851,104990.0,104980.0,0.881774]
[1737313061931,0.25612851,104990.0,104980.0,0.40802456]
[1737313062131,0.32102851,104990.0,104980.0,0.40802456]
[1737313062428,0.32102851,104990.0,104980.0,0.23642867]
[1737313062934,0.32102851,104990.0,104980.0,0.23165768]
[1737313063839,0.32102851,104990.0,104980.0,0.23165779]
[1737313064533,0.32102851,104990.0,104980.0,0.00298203]
[1737313064534,0.17874544,104990.0,104980.0,0.00298203]
[1737313066437,0.17874544,104990.0,104980.0,0.08503147]
[1737313066438,0.079478,104990.0,104980.0,0.08503147]
[1737313066735,0.047678,104990.0,104980.0,0.45060246]
[1737313066923,0.047678,104990.0,104980.0,0.51530246]
[1737313067329,0.21837352,104990.0,104980.0,0.68692223]
[1737313069034,0.21837352,104990.0,104980.0,0.68215144]
[1737313069539,0.21837352,104990.0,104980.0,0.67916941]
[1737313069736,0.17069552,104990.0,104980.0,0.71353685]
[1737313069924,0.25545266,105000.0,104980.0,0.75088599]
[1737313070235,0.25545266,105000.0,104990.0,0.44284544]
[1737313070236,0.20777866,105000.0,104990.0,0.44284544]
[1737313070440,0.20777866,105000.0,104990.0,0.44582714]
[1737313070738,0.25545166,105000.0,104990.0,0.44582714]
[1737313071239,0.05704036,105000.0,104990.0,0.44582714]
[1737313071737,0.0914078,105000.0,104990.0,0.44582687]
[1737313072338,0.0914078,105000.0,104990.0,1.35527128]
[1737313072938,0.0914078,105000.0,104990.0,1.32090384]
[1737313073338,0.0914078,105000.0,104990.0,1.35527128]
[1737313073539,0.0914078,105000.0,104990.0,0.96057623]
[1737313074032,0.0914078,105000.0,104990.0,0.92620879]
[1737313074834,0.05704036,105000.0,104990.0,0.64013519]
[1737313075039,0.05704036,105000.0,104990.0,0.67450263]
[1737313075244,0.05704036,105000.0,104990.0,0.70580263]
[1737313075631,0.0914078,105000.0,104990.0,0.70580263]
[1737313075838,0.0914078,105000.0,104990.0,0.63715376]
[1737313076035,0.1242078,105000.0,104990.0,0.27933517]
[1737313077243,0.1242078,105000.0,104990.0,0.64013517]
[1737313077436,0.1242078,105000.0,104990.0,0.45069466]
[1737313078742,0.1242078,105000.0,104990.0,0.2220189]
[1737313078941,0.08984036,105000.0,104990.0,0.2220189]
[1737313079338,0.08984036,105000.0,104990.0,0.22201903]
[1737313079538,0.14218847,105000.0,104990.0,0.22201903]
[1737313083551,0.14218847,105000.0,104990.0,0.2793353]
[1737313084748,0.14218847,105000.0,104990.0,0.27933533]
[1737313086547,0.14218847,105000.0,104990.0,0.05065957]
[1737313086952,0.19453658,105000.0,104990.0,0.00298157]
[1737313087145,0.047678,104990.0,104980.0,0.44770199]
[1737313087451,0.13252611,104990.0,104980.0,0.45068372]
[1737313088245,0.080178,104990.0,104980.0,0.81148372]
[1737313088647,0.080178,104990.0,104980.0,0.05066376]
[1737313088941,0.080178,104990.0,104980.0,0.41146376]
[1737313089158,0.080178,104990.0,104980.0,0.41623456]
[1737313089655,0.047678,104990.0,104980.0,0.6399269]
[1737313089841,0.08984136,105000.0,104990.0,0.047678]
[1737313090037,0.08984136,105000.0,104990.0,0.46380787]
[1737313090442,0.08984136,105000.0,104990.0,0.46082611]
[1737313090641,0.08984136,105000.0,104990.0,0.46380762]
[1737313091343,0.00936736,105000.0,104990.0,0.46380761]
[1737313091548,0.61149306,105010.0,105000.0,0.047673]
[1737313091753,0.61149306,105010.0,105000.0,0.04749864]
[1737313093046,0.66384117,105010.0,105000.0,0.04749864]
[1737313093748,0.047673,105000.0,104990.0,0.95572436]
[1737313093947,0.047673,105000.0,104990.0,1.0110539]
[1737313095143,0.047673,105000.0,104990.0,1.40843229]
[1737313095545,0.41808923,105010.0,105000.0,0.047673]
[1737313095745,0.05728923,105010.0,105000.0,0.408473]
[1737313095945,0.05728923,105010.0,105000.0,0.41145443]
[1737313096248,0.05728923,105010.0,105000.0,0.64013019]
[1737313096443,0.05728923,105010.0,105000.0,0.64013008]
[1737313096656,0.10963734,105010.0,105000.0,0.23165708]
[1737313096844,0.10963734,105010.0,105000.0,0.22867576]
[1737313097045,0.10963734,105010.0,105000.0,0.27634876]
[1737313097245,0.05728923,105010.0,105000.0,0.27634876]
[1737313098252,0.05728923,105010.0,105000.0,0.63714876]
[1737313098652,0.05728923,105010.0,105000.0,0.80865136]
[1737313100047,0.47043734,105010.0,105000.0,0.23165706]
[1737313100447,0.47043734,105010.0,105000.0,0.2316572]
[1737313101353,0.47043734,105010.0,105000.0,0.00298144]
[1737313101556,0.10963734,105010.0,105000.0,0.00298144]
[1737313102348,0.10963734,105010.0,105000.0,0.00298143]
[1737313103456,0.28023688,105010.0,105000.0,0.00298143]
[1737313103652,0.22788877,105010.0,105000.0,0.00298143]
[1737313103956,0.22788877,105010.0,105000.0,0.05065443]
[1737313106851,0.22788877,105010.0,105000.0,0.0506543]
[1737313107054,0.10963734,105010.0,105000.0,0.0506543]
[1737313107250,0.10963734,105010.0,105000.0,0.4114543]
[1737313107953,0.05728923,105010.0,105000.0,0.4114543]
[1737313108154,0.05728923,105010.0,105000.0,0.86400445]
[1737313108458,0.05728923,105010.0,105000.0,0.81165634]
[1737313108657,0.05728923,105010.0,105000.0,0.84295634]
[1737313109249,0.05728923,105010.0,105000.0,0.90007427]
[1737313109650,0.05728923,105010.0,105000.0,1.18247037]
[1737313110046,0.05728923,105010.0,105000.0,1.21347037]
[1737313111360,0.0937,105020.0,105010.0,0.047669]
[1737313111361,0.078166,105020.0,105010.0,0.047669]
[1737313111557,0.078166,105020.0,105010.0,0.46379841]
[1737313112062,0.17059916,105030.0,105010.0,0.46379805]
[1737313112360,0.17059916,105030.0,105020.0,0.46081211]
[1737313112555,0.17059916,105030.0,105020.0,0.52966228]
[1737313113058,0.17059916,105030.0,105020.0,0.53562295]
[1737313113256,0.17059916,105030.0,105020.0,0.52966228]
[1737313113457,0.17059916,105030.0,105020.0,0.52489305]
[1737313113858,0.15367425,105040.0,105030.0,0.04766]
[1737313114060,0.20602236,105040.0,105030.0,0.40846]
[1737313114358,0.15367425,105040.0,105030.0,0.40846]
[1737313114563,0.20602236,105040.0,105030.0,0.04766]
[1737313114960,0.20602236,105040.0,105030.0,0.21876849]
[1737313115261,0.15367425,105040.0,105030.0,0.22174884]
[1737313115460,0.15367425,105040.0,105030.0,0.21876849]
[1737313115658,0.15367425,105040.0,105030.0,0.22174883]
[1737313116263,0.29577897,105040.0,105030.0,0.04766]
[1737313116463,0.29577897,105040.0,105030.0,0.40846]
[1737313118372,0.34812708,105040.0,105030.0,0.40846]
[1737313118669,0.29577897,105040.0,105030.0,0.40846]
[1737313121562,0.23197897,105040.0,105030.0,0.41144028]
[1737313122467,0.23197897,105040.0,105030.0,0.41144029]
[1737313124269,0.23197897,105040.0,105030.0,0.40846]
[1737313124658,0.28432708,105040.0,105030.0,0.40846]
[1737313124861,0.14222236,105040.0,105030.0,0.57956849]
[1737313125973,0.14222236,105040.0,105030.0,0.40846]
[1737313126670,0.14222236,105040.0,105030.0,0.04766]
[1737313129967,0.14222236,105040.0,105030.0,0.21876849]
[1737313132678,0.14222236,105040.0,105030.0,0.04766]
[1737313132975,0.08987425,105040.0,105030.0,0.04766]
[1737313134862,0.23197897,105040.0,105030.0,0.04766]
[1737313135473,0.23197897,105040.0,105030.0,0.0506404]
[1737313136170,0.08987425,105040.0,105030.0,0.0506404]
[1737313136967,0.23197897,105040.0,105030.0,0.0506404]
[1737313137275,0.23197897,105040.0,105030.0,0.05064041]
[1737313138280,0.08987425,105040.0,105030.0,0.2217489]
[1737313138784,0.08987425,105040.0,105030.0,0.5825489]
[1737313139476,0.08987425,105040.0,105030.0,0.58731714]
[1737313139974,0.08987425,105040.0,105030.0,0.8154618]
[1737313140877,0.08987425,105040.0,105030.0,1.32197701]
[1737313141077,0.04221725,105040.0,105030.0,1.32197691]
[1737313141268,0.04221725,105040.0,105030.0,1.32793729]
[1737313141776,0.04221725,105040.0,105030.0,1.32793733]
[1737313142072,0.04221725,105040.0,105030.0,1.09979269]
[1737313142276,0.04221725,105040.0,105030.0,1.1521408]
[1737313142475,0.04221725,105040.0,105030.0,1.09979269]
[1737313142777,0.04221725,105040.0,105030.0,1.09383225]
[1737313146071,0.04221725,105040.0,105030.0,1.08906391]
[1737313147176,0.04221725,105040.0,105030.0,1.14141202]
[1737313147675,0.18432197,105040.0,105030.0,1.09872876]
[1737313148182,0.18432197,105040.0,105030.0,1.08045866]
[1737313148872,0.21864549,105040.0,105030.0,1.11478218]
[1737313149069,0.07654077,105040.0,105030.0,1.11478218]
[1737313149269,0.07654077,105040.0,105030.0,0.70999381]
[1737313149672,0.12419577,105040.0,105030.0,0.70999381]
[1737313150078,0.15851929,105040.0,105030.0,0.70999381]
[1737313150279,0.30062401,105040.0,105030.0,0.26106878]
[1737313150982,0.26630049,105040.0,105030.0,0.26106878]
[1737313151485,0.26630049,105040.0,105030.0,0.26583743]
[1737313152385,0.26630049,105040.0,105030.0,0.261069]
[1737313152885,0.28428728,105040.0,105030.0,0.62663761]
[1737313153070,0.28428728,105040.0,105030.0,0.26583761]
[1737313153275,0.28428728,105040.0,105030.0,0.26106897]
[1737313153475,0.28428728,105040.0,105030.0,0.62663755]
[1737313153886,0.26047141,105040.0,105030.0,0.56946242]
[1737313154184,0.26047141,105040.0,105030.0,0.62177273]
[1737313156185,0.23219193,105040.0,105030.0,0.67894786]
[1737313158186,0.23219193,105040.0,105030.0,0.67894738]
[1737313158587,0.23219193,105040.0,105030.0,0.67417907]
[1737313158789,0.26047141,105040.0,105030.0,0.6169814]
[1737313159987,0.26047141,105040.0,105030.0,0.84568007]
[1737313160478,0.26047141,105040.0,105030.0,0.84269988]
[1737313160679,0.26047141,105040.0,105030.0,0.84568004]
[1737313161192,0.23217,105040.0,105030.0,0.62186873]
[1737313162588,0.08987225,105040.0,105030.0,0.67924366]
[1737313162984,0.04221725,105040.0,105030.0,0.73155397]
[1737313163287,0.25464975,105050.0,105040.0,0.047655]
[1737313163480,0.25464975,105050.0,105040.0,0.408455]
[1737313163681,0.22304975,105050.0,105040.0,0.41143508]
[1737313163978,0.18994975,105050.0,105040.0,0.41143508]
[1737313164583,0.18994975,105050.0,105040.0,0.46374539]
[1737313165186,0.18994975,105050.0,105040.0,0.64009454]
[1737313166693,0.19940721,105050.0,105040.0,0.64486255]
[1737313166884,0.19940721,105050.0,105040.0,0.69717286]
[1737313167484,0.14229775,105050.0,105040.0,0.69717286]
[1737313167681,0.14229775,105050.0,105040.0,0.72747286]
[1737313167881,0.14229775,105050.0,105040.0,0.75917286]
[1737313168587,0.17059916,105060.0,105050.0,0.047651]
[1737313168782,0.17059916,105060.0,105050.0,0.51808623]
[1737313169183,0.20369916,105080.0,105050.0,0.51808623]
[1737313169392,0.20369916,105080.0,105070.0,0.408442]
[1737313169595,0.25133616,105080.0,105070.0,0.41142208]
[1737313169889,0.25133616,105080.0,105070.0,0.41142104]
[1737313170188,0.20369916,105080.0,105070.0,0.41142104]
[1737313170380,0.17059916,105080.0,105070.0,1.3416177]
[1737313170588,0.38302816,105100.0,105090.0,0.047632]
[1737313170789,0.38302816,105100.0,105090.0,0.46372135]
[1737313170996,0.33539916,105100.0,105090.0,0.46372135]
[1737313171379,0.33539916,105100.0,105090.0,0.41141104]
[1737313171595,0.1648,105100.0,105090.0,0.41141104]
[1737313172185,0.1648,105100.0,105090.0,0.05061104]
[1737313172381,0.1648,105100.0,105090.0,0.047632]
[1737313172591,0.1648,105100.0,105090.0,0.5795316]
[1737313172791,0.1648,105100.0,105090.0,0.2187316]
[1737313173188,0.1648,105100.0,105090.0,0.5795316]
[1737313173886,0.1648,105100.0,105090.0,0.408432]
[1737313175188,0.21711031,105100.0,105090.0,0.408432]
[1737313175398,0.047632,105090.0,105080.0,0.5795346]
[1737313175592,0.09994231,105090.0,105080.0,0.5795346]
[1737313176396,0.047632,105090.0,105080.0,0.5795346]
[1737313177599,0.047632,105090.0,105080.0,0.408435]
[1737313182891,0.047632,105090.0,105080.0,0.047635]
[1737313183096,0.047632,105090.0,105080.0,0.408435]
[1737313185306,0.05724329,105090.0,105080.0,0.408435]
[1737313185699,0.1095536,105090.0,105080.0,0.408435]
[1737313185899,0.08854329,105090.0,105080.0,0.408435]